bitfinex/quotes_ETHUSD_20230405
["timestamp","ask_amount","ask_price","bid_price","bid_amount"]
[1680662603017,2.63428255,1910.3,1910.0,0.78532]
[1680662603607,0.008,1910.4,1910.0,0.78532]
[1680662603921,0.00856186,1910.5,1910.0,0.78532]
[1680662604107,2.64284441,1910.5,1910.0,0.78532]
[1680662604713,2.64284441,1910.5,1910.0,0.87268302]
[1680662605413,2.64284441,1910.5,1910.0,0.34913302]
[1680662605608,2.82603441,1910.5,1910.0,0.26177]
[1680662605817,2.64284441,1910.5,1910.0,0.26177]
[1680662606197,2.64284441,1910.5,1909.8,0.078546]
[1680662606396,2.82603441,1910.5,1909.9,0.26178]
[1680662606617,2.82603441,1910.5,1909.9,0.3481836]
[1680662606822,2.86428255,1910.4,1909.9,0.0863936]
[1680662607117,3.04748255,1910.4,1909.9,0.0863936]
[1680662607325,2.87028255,1910.4,1909.9,0.3481836]
[1680662607489,2.86428255,1910.4,1909.9,0.3481836]
[1680662607916,2.86428255,1910.4,1909.9,0.26179]
[1680662608248,0.008,1910.5,1910.0,0.01915433]
[1680662608430,2.38319,1910.6,1910.0,0.28092433]
[1680662608628,5.01747255,1910.6,1910.0,0.28092433]
[1680662608805,4.83628255,1910.6,1910.0,0.36137476]
[1680662608997,4.83428255,1910.6,1910.0,0.36137476]
[1680662609193,0.006,1910.6,1910.0,0.88493476]
[1680662609388,0.236,1910.7,1910.1,0.08849348]
[1680662609590,2.87028255,1910.7,1910.2,0.78523]
[1680662609822,2.87028255,1910.7,1910.2,0.26174]
[1680662610225,2.87028255,1910.7,1910.2,0.36826668]
[1680662610526,2.87028255,1910.7,1910.2,0.10652668]
[1680662610698,2.86428255,1910.7,1910.2,0.36827668]
[1680662611098,10.32628255,1910.6,1910.0,0.08045043]
[1680662611328,0.23,1910.5,1910.2,0.26175]
[1680662611495,2.86428255,1910.5,1910.2,0.26175]
[1680662611687,2.86428255,1910.5,1910.0,0.08045043]
[1680662611891,2.86428255,1910.5,1910.0,0.26177]
[1680662612348,2.86428255,1910.5,1910.0,0.78533]
[1680662612534,2.86428255,1910.5,1910.0,0.26177]
[1680662612733,2.86428255,1910.5,1909.9,0.01915534]
[1680662612734,8.13228255,1910.4,1909.9,0.01915534]
[1680662612933,2.194,1910.2,1909.9,0.26179]
[1680662613133,2.63428255,1910.1,1909.9,0.26179]
[1680662613325,0.23,1910.0,1909.8,0.2618]
[1680662614351,0.23,1910.0,1909.7,0.52363]
[1680662614523,0.23,1910.0,1909.8,0.2618]
[1680662614736,0.23,1910.0,1909.7,0.2618]
[1680662615315,0.23,1910.0,1909.7,0.78544]
[1680662615715,2.406,1910.0,1909.5,2.68430637]
[1680662615955,5.04028255,1910.0,1909.5,1.35595702]
[1680662616117,5.04228255,1910.0,1909.5,0.26183]
[1680662617336,0.18326,1909.8,1909.3,0.002]
[1680662617536,2.86428255,1909.7,1909.2,1.35600702]
[1680662617737,3.04755255,1909.7,1909.1,1.10012702]
[1680662618051,3.41409255,1909.7,1909.0,1.35603702]
[1680662618216,3.41409255,1909.7,1909.0,1.42969341]
[1680662618217,8.91209255,1909.7,1909.0,1.42969341]
[1680662618555,8.91209255,1909.7,1909.0,1.69160341]
[1680662618556,8.54755255,1909.7,1909.0,1.69160341]
[1680662618720,8.54755255,1909.7,1909.0,2.21543341]
[1680662619439,0.00256186,1909.6,1909.0,2.21543341]
[1680662619620,2.63684441,1909.6,1909.1,0.22154334]
[1680662619816,0.23,1909.5,1909.1,0.48343334]
[1680662620717,0.23,1909.5,1909.1,1.00723334]
[1680662621523,0.00256186,1909.6,1909.1,1.00723334]
[1680662621955,0.00256186,1909.6,1909.1,0.48343334]
[1680662622121,0.41584186,1909.6,1909.1,0.22154334]
[1680662622646,3.05013441,1909.6,1909.0,1.69159341]
[1680662622850,3.05013441,1909.6,1908.9,1.47520239]
[1680662623019,2.63428255,1909.5,1908.9,1.21329239]
[1680662623221,0.7799,1909.4,1908.9,1.19412702]
[1680662623420,2.63428255,1909.3,1908.9,0.1]
[1680662623655,0.23,1909.2,1908.9,0.1]
[1680662623861,2.86428255,1909.2,1908.9,0.1]
[1680662624062,2.63428255,1909.1,1908.9,0.1]
[1680662624555,0.23,1909.0,1908.9,0.1]
[1680662624926,2.86428255,1909.0,1908.9,0.1]
[1680662625540,0.23,1909.0,1908.9,0.1]
[1680662626056,2.176,1909.3,1908.9,0.1]
[1680662626262,2.176,1909.3,1908.9,0.36192]
[1680662626467,2.176,1909.3,1908.9,0.1]
[1680662626620,2.63684441,1909.2,1908.9,0.1]
[1680662627454,0.18333,1909.1,1908.9,0.1]
[1680662627654,2.63428255,1909.1,1908.9,0.1]
[1680662627862,0.23,1909.0,1908.9,0.1]
[1680662628163,0.23256186,1909.0,1908.9,0.1]
[1680662628365,3.05018441,1909.0,1908.9,0.1]
[1680662628564,2.86684441,1909.0,1908.9,0.1]
[1680662629354,0.002,1909.1,1908.9,0.1]
[1680662629550,11.89176186,1909.4,1908.9,0.1]
[1680662629730,2.63428255,1909.2,1908.9,0.36192]
[1680662629930,0.23,1909.1,1908.9,0.36192]
[1680662630130,0.23,1909.1,1908.9,0.1]
[1680662631169,0.002,1909.3,1909.0,0.78574]
[1680662631468,0.002,1909.6,1909.1,0.078574]
[1680662631771,0.008,1909.7,1909.2,0.78564]
[1680662631972,2.33064759,1910.1,1909.3,0.078564]
[1680662632126,2.33064759,1910.1,1909.5,0.26184]
[1680662632127,2.63428255,1910.0,1909.5,0.26184]
[1680662632332,2.63428255,1910.0,1909.5,0.78553]
[1680662633694,2.202,1910.1,1909.5,1.911473]
[1680662633891,4.82828255,1910.1,1909.5,1.911473]
[1680662634182,5.01751255,1910.1,1909.5,0.864083]
[1680662634388,5.01951255,1910.1,1909.5,0.078553]
[1680662634532,2.63428255,1910.0,1909.4,0.28101035]
[1680662634728,2.82009441,1910.0,1909.4,0.28101035]
[1680662634953,0.23,1909.9,1909.4,0.28101035]
[1680662636131,0.00256186,1910.0,1909.4,0.80473035]
[1680662636349,2.194,1910.1,1909.5,0.08047304]
[1680662636546,2.194,1910.1,1909.6,0.26182]
[1680662638984,0.00256186,1910.0,1909.5,0.34231304]
[1680662642293,0.5,1909.8,1909.4,0.01916035]
[1680662642441,0.004,1909.8,1909.4,0.27854688]
[1680662642641,2.186,1909.9,1909.4,0.36663297]
[1680662643367,2.186,1909.9,1909.4,0.27854688]
[1680662643577,2.186,1909.9,1909.1,2.46390387]
[1680662643578,2.63930787,1909.8,1909.1,2.46390387]
[1680662643753,2.63930787,1909.8,1909.3,0.26187]
[1680662643754,0.23,1909.7,1909.3,0.26187]
[1680662644166,0.23,1909.7,1909.3,0.78562]
[1680662644371,0.006,1910.0,1909.4,0.078562]
[1680662644587,0.18923,1910.1,1909.4,0.09538207]
[1680662644743,0.23,1910.0,1909.4,0.01682007]
[1680662644943,0.236,1910.0,1909.4,0.01682007]
[1680662645141,0.41925,1910.0,1909.4,0.01682007]
[1680662646293,0.78574,1910.0,1909.4,0.01682007]
[1680662646438,0.18925,1910.0,1909.4,0.01682007]
[1680662646644,0.18325,1910.0,1909.4,0.01682007]
[1680662646885,0.18925,1910.0,1909.4,0.27868007]
[1680662647099,0.18925,1910.0,1909.4,0.01682007]
[1680662647392,2.86428255,1909.9,1909.2,1.09412702]
[1680662647600,2.86428255,1909.9,1909.1,1.09412702]
[1680662647601,8.91805255,1909.9,1909.1,1.09412702]
[1680662647746,3.42205255,1909.9,1909.1,1.35602702]
[1680662647944,3.42005255,1909.9,1909.1,1.09412702]
[1680662649044,2.194,1909.5,1909.0,1.09412702]
[1680662649274,0.1833,1909.4,1909.0,1.09412702]
[1680662649508,0.1833,1909.4,1909.0,1.35111741]
[1680662650277,10.54328255,1909.3,1908.9,1.19412702]
[1680662650474,11.10121255,1909.3,1908.9,0.1]
[1680662650908,0.00502532,1909.2,1908.9,0.1]
[1680662651077,2.81761255,1909.1,1908.9,0.1]
[1680662651424,0.23,1909.0,1908.9,0.1]
[1680662656251,0.008,1909.2,1908.9,0.1]
[1680662656548,2.63428255,1909.1,1908.9,0.1]
[1680662656855,0.23,1909.0,1908.9,0.1]
[1680662658243,2.86428255,1909.0,1908.9,0.1]
[1680662658709,2.86428255,1909.0,1908.9,0.36193]
[1680662658910,0.18334,1909.0,1908.9,0.2456057]
[1680662659116,0.18334,1909.0,1908.9,0.1]
[1680662659443,0.18332,1909.2,1908.9,0.1]
[1680662659644,0.23,1909.1,1908.9,0.1]
[1680662660242,0.008,1909.3,1908.9,0.36192]
[1680662660446,0.006,1909.3,1908.9,3.19419525]
[1680662660657,0.006,1909.4,1909.0,1.09412702]
[1680662660856,0.006,1909.6,1909.1,3.03683972]
[1680662661648,0.006,1909.7,1909.1,4.25461657]
[1680662661845,0.006,1909.7,1909.4,0.14]
[1680662662046,0.01102532,1909.8,1909.5,0.78553]
[1680662662258,2.64530787,1909.8,1909.5,0.78553]
[1680662662650,0.01102532,1909.8,1909.5,0.78553]
[1680662662979,0.00502532,1909.8,1909.5,0.92753]
[1680662663728,0.00502532,1909.8,1909.5,0.40384]
[1680662664473,3.73730787,1909.8,1909.5,0.142]
[1680662664676,3.74330787,1909.8,1909.5,0.142]
[1680662664879,0.23,1909.7,1909.6,0.78549]
[1680662665173,0.23,1909.7,1909.6,1.83282]
[1680662665328,0.236,1909.7,1909.6,1.83282]
[1680662665533,0.236,1909.7,1909.6,0.78549]
[1680662665734,0.23,1909.7,1909.6,0.26183]
[1680662665991,0.23,1909.7,1909.5,0.40383]
[1680662666336,0.23,1909.7,1909.5,0.142]
[1680662666874,3.23083255,1909.7,1909.5,0.142]
[1680662667081,0.5,1909.6,1909.5,0.142]
[1680662667373,0.73,1909.6,1909.5,0.142]
[1680662667531,0.23,1909.6,1909.5,0.142]
[1680662668467,9.45328255,1909.6,1909.3,0.26187]
[1680662668685,2.71928255,1909.5,1909.3,0.26187]
[1680662669687,2.71928255,1909.5,1909.2,0.52377]
[1680662669884,2.71928255,1909.5,1909.2,0.26187]
[1680662670897,2.71928255,1909.5,1909.1,0.5238]
[1680662671097,2.71928255,1909.5,1909.2,0.26188]
[1680662672323,2.72528255,1909.5,1909.2,0.26188]
[1680662672600,2.72528255,1909.5,1909.1,0.26188]
[1680662672963,2.72528255,1909.5,1909.1,0.78568]
[1680662673163,1.10202532,1909.6,1909.1,0.96901]
[1680662673397,1.09602532,1909.6,1909.2,0.071]
[1680662674157,1.27930532,1909.6,1909.2,0.071]
[1680662674610,0.23,1909.5,1909.2,0.071]
[1680662674773,2.86428255,1909.5,1909.2,0.071]
[1680662674980,2.87028255,1909.5,1909.2,0.33288]
[1680662675198,2.87028255,1909.5,1909.2,0.071]
[1680662677692,2.87028255,1909.5,1909.2,0.85665]
[1680662678388,0.006,1909.5,1909.2,0.85665]
[1680662678589,1.09602532,1909.6,1909.2,0.156665]
[1680662678789,3.73030787,1909.6,1909.2,0.071]
[1680662678992,3.73630787,1909.6,1909.2,0.071]
[1680662679252,3.91958787,1909.6,1909.2,0.071]
[1680662679535,2.63428255,1909.5,1909.2,0.071]
[1680662679705,0.23,1909.4,1909.2,0.071]
[1680662680103,2.86428255,1909.4,1909.2,0.071]
[1680662680438,2.87028255,1909.4,1909.2,0.071]
[1680662680806,2.87028255,1909.4,1909.2,0.33288]
[1680662681199,0.236,1909.4,1909.2,0.071]
[1680662681405,0.23,1909.5,1909.2,0.071]
[1680662681644,3.73228255,1909.4,1909.2,0.071]
[1680662681804,0.73,1909.3,1909.2,0.071]
[1680662682014,1.106,1909.4,1908.9,0.62385]
[1680662682324,1.098,1909.4,1909.2,0.095]
[1680662687224,1.098,1909.4,1909.2,0.35688]
[1680662688330,0.006,1909.6,1909.2,0.88065]
[1680662688537,0.006,1909.6,1909.4,0.78558]
[1680662688731,0.006,1909.9,1909.4,0.78558]
[1680662689328,0.006,1910.0,1909.6,1.83278]
[1680662689522,0.004,1910.0,1909.8,0.2618]
[1680662689761,1.56866416,1910.1,1909.8,0.2618]
[1680662692763,1.10302532,1910.0,1909.6,0.26182]
[1680662692940,1.10302532,1910.0,1909.9,0.1]
[1680662693138,3.96730787,1910.0,1909.9,0.1]
[1680662693462,1.33902532,1910.0,1909.9,0.1]
[1680662693678,1.33302532,1910.0,1909.9,0.1]
[1680662695350,1.33090576,1910.0,1909.9,0.1]
[1680662695550,3.91518831,1910.0,1909.4,0.52372]
[1680662695755,2.76228255,1909.9,1909.6,0.26183]
[1680662695976,2.76228255,1909.9,1909.7,0.055]
[1680662696187,1.05290576,1910.0,1909.7,0.055]
[1680662696356,1.05090576,1910.0,1909.7,0.055]
[1680662698750,3.86842831,1910.0,1909.7,0.055]
[1680662698953,1.091,1909.8,1909.7,0.055]
[1680662699159,1.27426,1909.8,1909.7,0.055]
[1680662699342,1.50426,1909.8,1909.2,0.006]
[1680662699542,0.41327,1909.7,1909.5,0.059]
[1680662699772,0.23,1909.7,1909.5,0.059]
[1680662699977,0.41327,1909.7,1909.2,0.006]
[1680662700178,0.41327,1909.7,1909.2,0.62771913]
[1680662701200,0.23,1909.7,1909.2,0.26188]
[1680662701701,8.13228255,1909.6,1909.1,1.11202404]
[1680662701865,0.23,1909.5,1909.4,0.059]
[1680662702047,3.95228255,1909.5,1909.4,0.059]
[1680662702706,3.95730787,1909.5,1909.4,0.059]
[1680662704662,1.09302532,1909.5,1909.4,0.059]
[1680662705020,1.088,1909.5,1909.4,0.32086]
[1680662705224,1.098,1909.7,1909.4,0.32086]
[1680662705402,1.098,1909.7,1909.4,0.84458]
[1680662705716,1.098,1909.7,1909.4,0.929038]
[1680662707339,36.00038044,1910.0,1909.4,0.929038]
[1680662707533,8.70466299,1910.0,1909.4,0.94585807]
[1680662708391,1.098,1909.8,1909.4,0.32086]
[1680662708608,1.098,1909.8,1909.4,0.059]
[1680662708809,3.91554255,1909.8,1909.4,0.059]
[1680662708997,0.23,1909.7,1909.4,0.32086]
[1680662709427,0.23,1909.7,1909.4,0.40532]
[1680662709724,0.23,1909.7,1909.4,0.92904]
[1680662709922,1.098,1909.8,1909.4,0.84458]
[1680662710600,6.07038044,1910.0,1909.4,0.84458]
[1680662710788,8.70466299,1910.0,1909.4,0.84458]
[1680662710988,0.23,1909.9,1909.4,0.84458]
[1680662711228,0.23,1909.9,1909.6,0.26183]
[1680662711795,0.23,1909.9,1909.6,0.78549]
[1680662712001,0.23,1909.9,1909.7,0.3198]
[1680662713790,0.47366416,1910.1,1909.7,0.86025742]
[1680662713991,0.47366416,1910.1,1909.8,0.08602574]
[1680662713992,0.47166416,1910.1,1909.8,0.08602574]
[1680662714204,0.47166416,1910.1,1909.9,1.83254]
[1680662714446,0.47166416,1910.1,1909.9,0.78537]
[1680662715797,0.47166416,1910.1,1910.0,0.062]
[1680662716030,0.47166416,1910.1,1910.0,0.932077]
[1680662716213,0.47166416,1910.1,1910.0,0.84734]
[1680662719714,0.46820334,1910.1,1910.0,0.84734]
[1680662719925,0.46820334,1910.1,1910.0,8.70074]
[1680662720098,0.46820334,1910.1,1910.0,8.70274]
[1680662720304,0.46820334,1910.1,1910.0,4.44380857]
[1680662720620,0.46820334,1910.1,1910.0,0.84734]
[1680662728420,0.46820334,1910.1,1910.0,3.04734]
[1680662731075,0.45793979,1910.1,1910.0,3.04734]
[1680662732865,0.45793979,1910.1,1910.0,2.98534]
[1680662733161,1.13943904,1910.1,1910.0,2.98534]
[1680662733463,1.13943904,1910.1,1910.0,3.650572]
[1680662735554,0.008,1910.5,1910.0,3.650572]
[1680662735720,30.348939,1910.6,1910.0,3.650572]
[1680662735721,30.356939,1910.6,1910.0,3.650572]
[1680662735920,0.68284479,1910.1,1910.0,3.650572]
[1680662737968,5.498,1910.9,1910.1,0.682]
[1680662738173,5.498,1910.9,1910.0,14.50614134]
[1680662738174,0.23,1910.8,1910.3,1.83212]
[1680662738465,0.23,1910.8,1910.2,0.002]
[1680662738466,7.687,1910.4,1910.2,0.002]
[1680662738667,0.23,1910.3,1909.9,0.26179]
[1680662738868,0.00502532,1910.2,1909.6,1.04732]
[1680662739068,0.00502532,1910.2,1909.9,0.26179]
[1680662739364,0.00502532,1910.2,1909.9,0.78537]
[1680662739660,1.091,1910.1,1909.9,0.78537]
[1680662740460,0.23,1910.0,1909.9,0.78537]
[1680662740880,0.23,1910.0,1909.8,0.52361]
[1680662741046,0.23,1910.0,1909.9,0.26179]
[1680662741242,0.236,1910.0,1909.9,0.26179]
[1680662741789,8.05920253,1910.0,1909.5,0.002]
[1680662741928,1.098,1909.6,1909.4,0.52371]
[1680662742129,1.098,1909.6,1909.5,0.52369]
[1680662742334,1.104,1909.8,1909.5,0.78553]
[1680662742546,0.23,1909.7,1909.5,0.78553]
[1680662743141,1.098,1909.8,1909.5,0.78553]
[1680662743341,0.006,1909.9,1909.5,0.78553]
[1680662743543,0.23,1909.9,1909.5,0.78553]
[1680662743798,0.23,1909.9,1909.5,0.26184]
[1680662743958,2.99728255,1909.9,1909.3,0.26186]
[1680662744139,1.098,1909.8,1909.4,0.26185]
[1680662744476,0.23,1909.7,1909.4,0.26185]
[1680662745281,1.091,1909.6,1909.1,9.8076]
[1680662745483,1.097,1909.6,1909.2,0.26188]
[1680662745975,0.61429976,1909.5,1909.2,0.26188]
[1680662747235,9.23028255,1909.3,1909.0,0.002]
[1680662747613,6.76934,1909.1,1908.9,0.1]
[1680662747879,0.23,1909.0,1908.9,0.1]
[1680662748173,1.091,1909.1,1908.9,0.1]
[1680662748362,0.23,1909.0,1908.9,0.1]
[1680662749540,1.091,1909.1,1908.9,0.1]
[1680662750076,0.23,1909.0,1908.9,0.1]
[1680662750274,0.23,1909.0,1908.8,0.05]
[1680662750463,0.23,1909.0,1908.7,0.26194]
[1680662750783,0.23,1909.0,1908.7,0.78585]
[1680662751142,0.23,1909.0,1908.7,0.26194]
[1680662752365,1.09602532,1909.2,1908.7,1.83368]
[1680662752562,0.23,1909.1,1908.7,1.83368]
[1680662752771,1.104,1909.4,1908.8,2.2]
[1680662753079,1.098,1909.4,1908.9,0.78575]
[1680662753381,0.006,1909.5,1908.9,3.42003255]
[1680662753676,1.091,1909.6,1909.1,0.78567]
[1680662753862,0.61050728,1909.4,1909.1,0.78567]
[1680662754269,0.61050728,1909.4,1909.0,0.26191]
[1680662754445,0.61050728,1909.4,1909.0,0.78574]
[1680662756183,0.61050728,1909.4,1909.1,2.2168227]
[1680662756344,0.61050728,1909.4,1909.2,0.78565]
[1680662759346,0.61050728,1909.4,1909.1,2.2168227]
[1680662759544,1.70850728,1909.4,1909.0,0.002]
[1680662759775,0.23,1909.3,1908.9,0.26192]
[1680662760077,0.23,1909.3,1908.9,0.26191]
[1680662760278,0.23,1909.3,1908.9,0.78577]
[1680662760683,0.23,1909.3,1908.9,0.26191]
[1680662760860,0.23,1909.3,1908.9,0.78577]
[1680662761179,1.10302532,1909.4,1908.9,0.78577]
[1680662762187,0.00502532,1909.4,1908.9,0.78577]
[1680662762360,1.50902532,1909.4,1908.9,0.26191]
[1680662762554,1.50902532,1909.4,1908.9,0.78577]
[1680662762762,0.18331,1909.3,1909.0,0.027]
[1680662762964,1.50902532,1909.4,1909.0,0.027]
[1680662763481,1.50902532,1909.4,1909.0,0.28891]
[1680662764089,1.50902532,1909.4,1909.0,0.81274]
[1680662766979,1.504,1909.4,1909.0,0.81274]
[1680662767168,1.504,1909.4,1909.0,0.82956359]
[1680662767958,0.66159176,1909.3,1909.0,0.82956359]
[1680662770780,0.66159176,1909.3,1909.0,5.66384614]
[1680662770985,0.66159176,1909.3,1909.2,4.0332]
[1680662771197,0.65921408,1909.3,1909.2,4.0352]
[1680662771374,0.65921408,1909.3,1909.2,4.0332]
[1680662771563,0.65921408,1909.3,1909.2,4.0612]
[1680662771965,1.504,1909.4,1909.2,4.0612]
[1680662772493,1.504,1909.4,1909.2,6.69548255]
[1680662772706,1.504,1909.4,1909.2,6.69748255]
[1680662773715,1.504,1909.4,1909.2,11.93527255]
[1680662774091,1.504,1909.4,1909.2,6.69748255]
[1680662774709,1.504,1909.4,1909.2,6.71430438]
[1680662777222,0.61599264,1909.3,1909.2,0.028]
[1680662777417,0.61599264,1909.3,1909.2,0.28988]
[1680662777724,0.61599264,1909.3,1909.2,0.81365]
[1680662778230,0.61599264,1909.3,1909.2,0.28988]
[1680662778412,0.61599264,1909.3,1909.2,0.028]
[1680662779038,0.61599264,1909.3,1909.2,0.28988]
[1680662779702,0.61599264,1909.3,1909.2,0.81365]
[1680662780132,0.61599264,1909.3,1909.2,0.83047183]
[1680662780344,0.61599264,1909.3,1909.2,3.46475438]
[1680662780891,0.006,1909.8,1909.2,3.46475438]
[1680662781117,4.9436,1909.9,1909.2,3.46475438]
[1680662781317,5.749534,1909.9,1909.2,0.83047183]
[1680662781632,1.098,1909.8,1909.2,0.83047183]
[1680662781995,1.8059272,1909.8,1909.2,0.83047183]
[1680662782199,4.62346975,1909.8,1909.2,0.30670183]
[1680662782397,0.69234698,1909.7,1909.2,0.28988]
[1680662782806,1.8139272,1909.8,1909.3,0.01682094]
[1680662783008,1.102,1909.8,1909.4,0.78557]
[1680662783306,1.098,1909.8,1909.4,0.78557]
[1680662783633,1.098,1909.8,1909.5,0.026]
[1680662783832,1.098,1909.8,1909.6,0.26183]
[1680662786136,1.098,1909.8,1909.5,0.026]
[1680662786306,0.00502532,1909.7,1909.3,0.26187]
[1680662786505,0.00502532,1909.7,1909.5,0.028]
[1680662786999,0.00502532,1909.7,1909.5,0.28984]
[1680662787339,0.00502532,1909.7,1909.5,0.028]
[1680662788735,0.23502532,1909.7,1909.5,0.028]
[1680662788965,0.36832785,1909.7,1909.5,0.28983]
[1680662789137,0.36832785,1909.7,1909.5,0.28984]
[1680662789339,0.00502532,1909.7,1909.5,0.26184]
[1680662790602,0.00502532,1909.7,1909.5,0.78553]
[1680662791039,0.23502532,1909.7,1909.4,0.26184]
[1680662791208,0.36832785,1909.7,1909.5,0.027]
[1680662792103,3.73228255,1909.6,1909.5,0.027]
[1680662792303,3.96228255,1909.6,1909.1,1.35377799]
[1680662792641,1.328,1909.5,1909.0,2.45672547]
[1680662792855,1.328,1909.5,1909.1,0.2619]
[1680662793150,0.008,1909.6,1909.2,0.28988]
[1680662793345,2.63428255,1909.5,1909.2,0.28988]
[1680662793546,0.23,1909.4,1909.2,0.81365]
[1680662793906,0.22761249,1909.4,1909.2,0.81365]
[1680662794849,0.002,1909.6,1909.2,0.81365]
[1680662795151,9.7575,1909.8,1909.4,0.78556]
[1680662795152,0.008,1909.8,1909.4,0.78556]
[1680662795345,35.96862532,1909.9,1909.4,0.78556]
[1680662795574,0.008,1909.9,1909.5,0.01681918]
[1680662795729,1.098,1910.0,1909.5,0.04481918]
[1680662795919,1.098,1910.0,1909.6,1.8328]
[1680662796119,1.104,1910.0,1909.6,1.8328]
[1680662796318,1.098,1910.0,1909.6,1.8328]
[1680662797851,1.10302532,1909.9,1909.6,4.45114]
[1680662798151,1.78976888,1909.9,1909.6,4.45114]
[1680662798533,1.78976888,1909.9,1909.6,1.8328]
[1680662799450,0.69176888,1909.9,1909.7,0.027]
[1680662799655,0.69176888,1909.9,1909.8,0.2618]
[1680662801061,0.69176888,1909.9,1909.7,0.28881]
[1680662801258,0.69176888,1909.9,1909.7,0.027]
[1680662801476,1.04981,1909.7,1909.1,2.46768642]
[1680662801665,1.04981,1909.7,1909.4,0.002]
[1680662801666,0.18329,1909.5,1909.4,0.002]
[1680662801866,11.10415255,1909.5,1908.8,1.09674952]
[1680662802161,1.098,1909.1,1908.8,1.88256952]
[1680662803177,0.006,1909.2,1908.8,1.88256952]
[1680662803393,0.23,1909.2,1908.8,1.88256952]
[1680662803869,0.23,1909.2,1908.8,3.25350642]
[1680662804170,0.23,1909.2,1909.0,0.26191]
[1680662804330,1.094,1909.3,1909.0,0.26191]
[1680662804520,1.088,1909.3,1909.0,0.26191]
[1680662805361,1.088,1909.3,1908.9,0.26192]
[1680662805526,1.088,1909.3,1908.9,1.35866952]
[1680662805742,0.006,1909.4,1908.9,1.88252952]
[1680662805950,1.10902532,1909.5,1909.0,1.09674952]
[1680662806140,1.10902532,1909.5,1909.1,0.26189]
[1680662806668,1.10902532,1909.5,1909.0,1.88246952]
[1680662806979,2.31373585,1909.5,1909.0,1.09674952]
[1680662807160,1.091,1909.1,1908.8,1.09874952]
[1680662807360,1.091,1909.1,1908.7,2.72963642]
[1680662807533,1.091,1909.1,1908.7,1.35869952]
[1680662807741,1.091,1909.1,1908.7,2.72963642]
[1680662807940,1.091,1909.1,1908.7,2.46768642]
[1680662808141,1.218432,1909.1,1908.7,2.72963642]
[1680662808346,1.218432,1909.1,1908.7,3.25354642]
[1680662808688,1.091,1909.1,1908.7,3.25354642]
[1680662808867,1.091,1909.1,1908.8,0.26193]
[1680662809240,0.01102532,1909.3,1908.8,0.26193]
[1680662809445,0.01102532,1909.3,1908.8,1.88255952]
[1680662809942,0.01102532,1909.3,1908.8,3.25349642]
[1680662810166,0.01102532,1909.3,1908.9,1.09674952]
[1680662810381,0.01102532,1909.3,1908.9,0.26191]
[1680662810681,1.06945785,1909.3,1908.9,0.26191]
[1680662810876,0.23,1909.2,1908.9,0.26191]
[1680662811341,0.23502532,1909.3,1908.9,0.26191]
[1680662811542,0.23502532,1909.3,1908.8,1.35867952]
[1680662811977,0.41833532,1909.3,1908.8,1.09674952]
[1680662812183,1.65856785,1909.3,1908.8,1.09674952]
[1680662812379,2.63428255,1909.2,1908.8,1.09674952]
[1680662812681,2.63428255,1909.2,1908.8,1.35868952]
[1680662812682,0.23,1909.1,1908.8,1.35868952]
[1680662812886,0.9994753,1909.1,1908.8,1.35868952]
[1680662813479,0.9994753,1909.1,1908.8,0.26194]
[1680662813849,1.098,1909.0,1908.7,1.35869952]
[1680662814056,1.13945108,1909.1,1908.7,1.88260952]
[1680662814291,0.7694753,1909.1,1908.7,1.88260952]
[1680662814588,0.7694753,1909.1,1908.7,2.93043952]
[1680662814766,0.7694753,1909.1,1908.7,4.30137642]
[1680662814952,0.7694753,1909.1,1908.7,2.93043952]
[1680662815362,0.7694753,1909.1,1908.9,0.78579]
[1680662815563,0.7694753,1909.1,1908.9,1.88253952]
[1680662816289,0.7694753,1909.1,1908.9,1.09674952]
[1680662816510,0.7694753,1909.1,1908.8,1.09674952]
[1680662816680,0.7694753,1909.1,1909.0,0.26191]
[1680662817699,0.7694753,1909.1,1908.9,0.78576]
[1680662817905,0.7694753,1909.1,1909.0,0.26191]
[1680662818362,0.7694753,1909.1,1909.0,0.78574]
[1680662818567,0.7694753,1909.1,1909.0,1.8334]
[1680662819204,0.7694753,1909.1,1909.0,2.94697311]
[1680662822603,0.7694753,1909.1,1909.0,5.58125566]
[1680662822809,0.7694753,1909.1,1909.0,5.58325566]
[1680662823019,0.006,1909.6,1909.0,5.58325566]
[1680662823316,0.006,1909.6,1909.0,15.46525566]
[1680662824115,0.69465463,1909.5,1909.0,15.46525566]
[1680662825715,0.69073629,1909.5,1909.2,0.78565]
[1680662825920,0.69073629,1909.5,1909.2,3.41993255]
[1680662826078,0.69073629,1909.5,1909.4,1.83302]
[1680662826286,0.69073629,1909.5,1909.4,0.78558]
[1680662826689,1.85080992,1909.5,1909.2,0.006]
[1680662826892,1.16007363,1909.5,1909.2,0.26187]
[1680662827090,1.16007363,1909.5,1909.2,0.78564]
[1680662827328,1.16007363,1909.5,1909.2,0.26187]
[1680662827525,1.16007363,1909.5,1909.2,0.26787]
[1680662827738,1.16007363,1909.5,1909.2,0.78564]
[1680662827911,1.091,1909.5,1909.2,0.78564]
[1680662828088,0.68720842,1909.4,1909.2,0.78564]
[1680662828826,0.68720842,1909.4,1909.2,0.79164]
[1680662829191,0.68720842,1909.4,1909.2,0.26187]
[1680662829384,0.68720842,1909.4,1909.2,0.78564]
[1680662830141,0.00502532,1909.3,1909.2,0.78564]
[1680662830901,0.69158929,1909.3,1909.2,0.78564]
[1680662831135,0.00502532,1909.3,1909.2,0.26187]
[1680662831436,0.00502532,1909.3,1909.1,0.26189]
[1680662833098,0.00502532,1909.3,1908.9,5.69737398]
[1680662833339,0.00502532,1909.3,1909.0,0.26191]